fUSD/lending_fUSD_20260315
["ID","MTS","AMOUNT","RATE_DAILY","PERIOD"]
[408390368,1773547986805,156.0,0.00013112,2]
[408390369,1773548052432,-157.0,0.00013112,3]
[408390370,1773548083914,-1852.42,0.00013137,2]
[408390371,1773548105850,161.0,0.00013137,2]
[408390372,1773548106645,157.0,0.00013137,2]
[408390373,1773548166853,157.0,0.00013137,2]
[408390374,1773548231331,157.0,0.00013137,2]
[408390375,1773548285252,157.0,0.00013137,2]
[408390376,1773548346523,157.0,0.00013137,2]
[408390378,1773548406076,161.0,0.00013137,2]
[408390387,1773549031880,-341.5636203,0.00013242,2]
[408390388,1773549032048,-501.84684239,0.00013242,2]
[408390389,1773549032060,-856.08682692,0.00013242,2]
[408390390,1773549032072,-3300.32081659,0.00013242,2]
[408390391,1773549032081,-259.0,0.00013242,2]
[408390392,1773549032091,-250.0,0.00013242,2]
[408390393,1773549032101,-2000.0,0.00013242,2]
[408390394,1773549032110,-300.0,0.00013249,2]
[408390395,1773549032122,-300.0,0.0001325,2]
[408390396,1773549032141,-1200.0,0.0001325,2]
[408390397,1773549032151,-300.0,0.0001325,2]
[408390398,1773549032161,-5000.0,0.00013251,2]
[408390399,1773549032170,-1600.0,0.00013277,2]
[408390400,1773549032179,-400.0,0.000135,4]
[408390401,1773549032188,-500.28201641,0.00013573,2]
[408390402,1773549032198,-500.0,0.00013573,2]
[408390403,1773549032208,-358.11667338,0.0001359,2]
[408390404,1773549032218,-150.0,0.00013598,2]
[408390407,1773549032228,-2503.391,0.00013599,2]
[408390409,1773549032237,-177.13,0.00013599,2]
[408390410,1773549032249,-11041.90674355,0.00013599,2]
[408390411,1773549032259,-285.32879458,0.000136,2]
[408390412,1773549032270,-1357.853,0.000136,2]
[408390413,1773549032280,-32112.92449653,0.000136,2]
[408390414,1773549032292,-3031.8631592,0.000136,2]
[408390415,1773549032303,-250.0,0.000136,2]
[408390416,1773549032314,-636.65095903,0.000136,2]
[408390417,1773549032325,-731.33274162,0.000136,2]
[408390418,1773549032336,-12372.53301719,0.000136,2]
[408390419,1773549032347,-684.58502,0.000136,2]
[408390420,1773549032371,-607.56498033,0.000136,2]
[408390421,1773549032383,-2113.6046225,0.000136,2]
[408390422,1773549032394,-14313.5154036,0.000136,2]
[408390423,1773549032403,-2500.0,0.000136,2]
[408390424,1773549032412,-4939.61055965,0.000136,2]
[408390425,1773549032422,-900.0,0.000136,4]
[408390426,1773549032431,-1947.3742,0.00013671,2]
[408390427,1773549032445,-500.0,0.00013673,2]
[408390428,1773549032455,-500.0,0.00013673,2]
[408390429,1773549032465,-500.0,0.00013673,2]
[408390430,1773549032475,-500.0,0.00013673,2]
[408390431,1773549032484,-500.0,0.00013673,2]
[408390432,1773549032493,-429.01401913,0.00013673,2]
[408390433,1773549032503,-332.58199131,0.00013673,2]
[408390434,1773549032513,-501.73372857,0.00013673,2]
[408390435,1773549032522,-500.0,0.00013673,2]
[408390436,1773549032531,-500.0,0.00013673,2]
[408390437,1773549032540,-500.0,0.00013673,2]
[408390438,1773549032549,-500.0,0.00013673,2]
[408390439,1773549032558,-502.19640803,0.00013673,2]
[408390440,1773549032568,-446.46468827,0.00013673,2]
[408390441,1773549032578,-500.0,0.00013673,2]
[408390442,1773549032587,-200.0,0.00013692,2]
[408390443,1773549032596,-500.0,0.00013692,2]
[408390444,1773549032605,-500.0,0.00013692,2]
[408390445,1773549032615,-513.70449455,0.00013692,2]
[408390446,1773549032624,-151.0,0.00013692,2]
[408390447,1773549032633,-151.0,0.00013692,2]
[408390448,1773549032643,-151.0,0.00013692,2]
[408390449,1773549032652,-151.0,0.00013692,2]
[408390450,1773549032661,-151.0,0.00013692,2]
[408390451,1773549032671,-151.0,0.00013692,2]
[408390452,1773549032681,-151.0,0.00013692,2]
[408390453,1773549032690,-151.0,0.00013692,2]
[408390454,1773549032699,-151.0,0.00013692,2]
[408390455,1773549032708,-151.0,0.00013692,2]
[408390456,1773549032717,-151.0,0.00013692,2]
[408390457,1773549032727,-151.0,0.00013692,2]
[408390458,1773549032737,-151.0,0.00013692,2]
[408390459,1773549032749,-151.0,0.00013692,2]
[408390460,1773549032758,-151.0,0.00013692,2]
[408390461,1773549032767,-151.0,0.00013692,2]
[408390462,1773549032777,-151.0,0.00013692,2]
[408390463,1773549032786,-151.0,0.00013692,2]
[408390464,1773549032795,-151.0,0.00013692,2]
[408390465,1773549032809,-151.0,0.00013692,2]
[408390466,1773549032818,-151.0,0.00013692,2]
[408390467,1773549032828,-151.0,0.00013692,2]
[408390468,1773549032840,-151.0,0.00013692,2]
[408390469,1773549032849,-151.0,0.00013692,2]
[408390470,1773549032859,-151.0,0.00013692,2]
[408390471,1773549032870,-151.0,0.00013692,2]
[408390472,1773549032880,-151.0,0.00013692,2]
[408390473,1773549032889,-151.0,0.00013692,2]
[408390474,1773549032899,-151.0,0.00013692,2]
[408390475,1773549032908,-151.0,0.00013692,2]
[408390476,1773549032918,-151.0,0.00013692,2]
[408390477,1773549032927,-500.0,0.00013692,2]
[408390478,1773549032937,-1234.73,0.00013692,2]
[408390479,1773549032948,-16335.33,0.00013699,2]
[408390480,1773549032958,-200.0,0.00013699,2]
[408390481,1773549032968,-249.43,0.00013699,2]
[408390482,1773549032977,-502.15081476,0.00013699,2]
[408390483,1773549032987,-1400.0,0.000137,5]
[408390484,1773549032996,-89199.35195819,0.00013724,2]
[408390485,1773549033007,-5838.24569422,0.00013773,2]
[408390486,1773549033017,-1800.0,0.000138,5]
[408390487,1773549033026,-2300.0,0.000139,5]
[408390488,1773549033035,-500.0,0.00013966,2]
[408390489,1773549033045,-1234.73,0.00013966,2]
[408390490,1773549033055,-800.53630958,0.000141,2]
[408390491,1773549033064,-2005.95019994,0.000141,2]
[408390492,1773549033073,-1000.0,0.00014121,2]
[408390493,1773549033082,-1000.0,0.00014221,2]
[408390494,1773549033091,-874.70888613,0.00014221,2]
[408390495,1773549033101,-1000.0,0.00014221,2]
[408390496,1773549033110,-1000.0,0.00014221,2]
[408390497,1773549033119,-1000.0,0.00014221,2]
[408390498,1773549033128,-1000.0,0.00014221,2]
[408390499,1773549033137,-1000.0,0.00014221,2]
[408390500,1773549033147,-1000.0,0.00014221,2]
[408390501,1773549033156,-1000.0,0.00014221,2]
[408390502,1773549033166,-500.0,0.0001424,2]
[408390503,1773549033175,-200.0,0.0001424,2]
[408390504,1773549033184,-1234.73,0.0001424,2]
[408390505,1773549033193,-501.20782157,0.00014273,2]
[408390506,1773549033203,-331.2186495,0.00014273,2]
[408390507,1773549033212,-160.06205431,0.00014273,2]
[408390508,1773549033222,-324.90506923,0.00014273,2]
[408390509,1773549033231,-501.09060044,0.00014273,2]
[408390510,1773549033241,-500.0,0.00014273,2]
[408390511,1773549033250,-500.0,0.00014273,2]
[408390512,1773549033259,-500.0,0.00014273,2]
[408390513,1773549033268,-501.32247837,0.00014273,2]
[408390514,1773549033277,-405.00050788,0.00014273,2]
[408390515,1773549033286,-482.7910397,0.00014273,2]
[408390516,1773549033295,-500.77956524,0.00014273,2]
[408390517,1773549033305,-272.69097746,0.0001429,2]
[408390518,1773549033314,-11041.90674348,0.00014299,2]
[408390519,1773549033323,-34451.06697187,0.00014304,2]
[408390520,1773549033332,-1000.0,0.0001439,2]
[408390521,1773549033342,-392.40649512,0.00014475,2]
[408390522,1773549033355,-823.88246481,0.00014475,2]
[408390523,1773549033364,-500.0,0.00014489,2]
[408390524,1773549033373,-500.0,0.00014489,2]
[408390525,1773549033382,-500.0,0.00014489,2]
[408390526,1773549033401,-539.6385769,0.00014489,2]
[408390527,1773549033410,-507.19541747,0.00014489,2]
[408390528,1773549033420,-500.0,0.00014489,2]
[408390529,1773549033429,-500.0,0.00014489,2]
[408390530,1773549033442,-515.75184569,0.00014489,2]
[408390531,1773549033452,-512.46285872,0.00014489,2]
[408390532,1773549033461,-500.0,0.00014489,2]
[408390533,1773549033471,-500.0,0.00014489,2]
[408390534,1773549033480,-500.0,0.00014489,2]
[408390535,1773549033490,-500.0,0.00014489,2]
[408390536,1773549033500,-507.79083862,0.00014489,2]
[408390537,1773549033509,-500.0,0.00014499,2]
[408390538,1773549033518,-511.07243209,0.00014499,2]
[408390539,1773549033527,-500.0,0.00014499,2]
[408390540,1773549033537,-518.99505939,0.00014499,2]
[408390541,1773549033546,-502.23147236,0.00014499,2]
[408390542,1773549033555,-503.085157,0.00014499,2]
[408390543,1773549033565,-510.91763486,0.00014499,2]
[408390544,1773549033575,-500.0,0.00014499,2]
[408390545,1773549033587,-500.0,0.00014499,2]
[408390546,1773549033597,-500.0,0.00014499,2]
[408390547,1773549033606,-500.0,0.00014499,2]
[408390548,1773549033616,-500.0,0.00014499,2]
[408390549,1773549033626,-500.0,0.00014499,2]
[408390550,1773549033635,-500.0,0.00014499,2]
[408390551,1773549033645,-500.0,0.00014499,2]
[408390552,1773549033655,-500.0,0.00014499,2]
[408390553,1773549033664,-213.05207057,0.00014499,2]
[408390554,1773549033674,-500.0,0.00014499,2]
[408390555,1773549033683,-531.39263306,0.00014499,2]
[408390556,1773549033693,-500.0,0.00014499,2]
[408390557,1773549033702,-500.0,0.00014499,2]
[408390558,1773549033944,-500.0,0.00014499,2]
[408390559,1773549033956,-500.0,0.00014499,2]
[408390560,1773549033966,-500.0,0.00014499,2]
[408390561,1773549033975,-500.0,0.00014499,2]
[408390562,1773549033985,-500.0,0.00014499,2]
[408390563,1773549033995,-500.0,0.00014499,2]
[408390564,1773549034004,-500.0,0.00014499,2]
[408390565,1773549034013,-500.0,0.00014499,2]
[408390566,1773549034022,-546.14810705,0.00014499,2]
[408390567,1773549034032,-500.0,0.00014499,2]
[408390568,1773549034042,-500.0,0.00014499,2]
[408390569,1773549034051,-500.0,0.00014499,2]
[408390570,1773549034060,-500.0,0.00014499,2]
[408390571,1773549034070,-500.0,0.00014499,2]
[408390572,1773549034079,-500.0,0.00014499,2]
[408390573,1773549034089,-500.0,0.00014499,2]
[408390574,1773549034102,-500.0,0.00014499,2]
[408390575,1773549034112,-500.0,0.00014499,2]
[408390576,1773549034121,-500.0,0.00014499,2]
[408390577,1773549034131,-500.0,0.00014499,2]
[408390578,1773549034142,-500.0,0.00014499,2]
[408390579,1773549034151,-513.87098244,0.00014499,2]
[408390580,1773549034161,-500.0,0.00014499,2]
[408390581,1773549034170,-500.0,0.00014499,2]
[408390582,1773549034180,-500.0,0.00014499,2]
[408390583,1773549034189,-568.64936411,0.00014499,2]
[408390584,1773549034199,-500.0,0.00014499,2]
[408390585,1773549034208,-500.0,0.00014499,2]
[408390586,1773549034218,-500.0,0.00014499,2]
[408390587,1773549034228,-287.82528865,0.00014499,2]
[408390588,1773549034237,-500.0,0.00014499,2]
[408390589,1773549034247,-500.0,0.00014499,2]
[408390590,1773549034256,-507.88347437,0.00014499,2]
[408390591,1773549034266,-500.0,0.00014499,2]
[408390592,1773549034275,-500.0,0.00014499,2]
[408390593,1773549034284,-500.0,0.00014499,2]
[408390594,1773549034294,-506.80406852,0.00014499,2]
[408390595,1773549034307,-510.21838234,0.00014499,2]
[408390596,1773549034317,-500.0,0.00014514,2]
[408390597,1773549034327,-1234.73,0.00014514,2]
[408390598,1773549034338,-240.0,0.00014526,2]
[408390599,1773549034349,-420.0,0.00014527,2]
[408390600,1773549034359,-302.0,0.00014527,2]
[408390601,1773549034369,-288.11559145,0.00014566,2]
[408390602,1773549034379,-2841.40405955,0.00014566,2]
[408390603,1773549034388,-250.0,0.00014566,2]
[408390604,1773549034398,-600.0,0.00014566,2]
[408390605,1773549034407,-600.0,0.00014566,2]
[408390606,1773549034417,-600.0,0.00014566,2]
[408390607,1773549034427,-300.0,0.00014566,2]
[408390608,1773549034436,-5000.0,0.00014567,2]
[408390609,1773549034446,-250.0,0.00014567,2]
[408390610,1773549034457,-193.0,0.00014567,2]
[408390611,1773549034466,-300.0,0.00014567,2]
[408390612,1773549034476,-300.0,0.00014567,2]
[408390613,1773549034485,-300.0,0.00014567,2]
[408390614,1773549034497,-300.0,0.00014567,2]
[408390615,1773549034507,-300.0,0.00014567,2]
[408390616,1773549034517,-1680.0,0.00014575,2]
[408390617,1773549034527,-7687.30105779,0.00014607,2]
[408390618,1773549034536,-880.96425522,0.00014607,2]
[408390619,1773549034545,-151.0,0.00014634,2]
[408390620,1773549034554,-151.0,0.00014634,2]
[408390621,1773549034564,-151.0,0.00014634,2]
[408390622,1773549034573,-151.0,0.00014634,2]
[408390623,1773549034583,-500.0,0.00014662,2]
[408390624,1773549034594,-219.11494189,0.00014668,2]
[408390625,1773549034604,-1559.44679366,0.00014699,2]
[408390626,1773549034614,-167.91,0.00014707,2]
[408390627,1773549034624,-167.91,0.00014707,2]
[408390628,1773549034634,-255.0,0.00014713,2]
[408390629,1773549034644,-1501.79136362,0.00014768,2]
[408390630,1773549034655,-544.01370364,0.00014768,2]
[408390631,1773549034664,-1500.0,0.00014768,2]
[408390632,1773549034673,-1500.0,0.00014768,2]
[408390633,1773549034682,-589.33481045,0.00014768,2]
[408390634,1773549034696,-910.66518955,0.00014768,2]
[408390635,1773549034705,-1500.0,0.00014768,2]
[408390636,1773549034715,-865.80616418,0.00014768,2]
[408390637,1773549034725,-1500.0,0.00014768,2]
[408390638,1773549034735,-500.0,0.00014788,2]
[408390639,1773549034745,-200.0,0.00014788,2]
[408390640,1773549034755,-1234.73,0.00014788,2]
[408390641,1773549034766,-503.67175726,0.00014821,2]
[408390642,1773549034775,-106.60583664,0.00014821,2]
[408390643,1773549034787,-304.03423716,0.00014821,2]
[408390644,1773549034798,-134.06769351,0.00014821,2]
[408390645,1773549034808,-164.79230649,0.00014821,2]
[408390646,1773549034820,-336.66589317,0.00014821,2]
[408390647,1773549034829,-171.303049,0.00014845,2]
[408390648,1773549034838,-750.93105783,0.00014898,2]
[408390649,1773549034851,-940.38306014,0.00014898,2]
[408390650,1773549034863,-308.68588203,0.00014898,2]
[408390651,1773549034877,-283.39298428,0.000149,2]
[408390654,1773549038019,-488.41431202,0.00013699,2]
[408390655,1773549038074,-11.58568798,0.00013699,2]
[408390656,1773549038086,-500.0,0.00013699,2]
[408390657,1773549038097,-340.6984762,0.00013699,2]
[408390658,1773549038112,-159.3015238,0.00013699,2]
[408390659,1773549038122,-277.45070995,0.00013699,2]
[408390660,1773549038133,-222.54929005,0.00013699,2]
[408390661,1773549038142,-500.0,0.00013699,2]
[408390662,1773549038151,-500.0,0.00013699,2]
[408390663,1773549038161,-500.0,0.00013699,2]
[408390664,1773549038170,-276.57965835,0.00013699,2]
[408390665,1773549038180,-500.0,0.00013699,2]
[408390666,1773549038189,-500.0,0.00013699,2]
[408390667,1773549038198,-500.0,0.00013699,2]
[408390668,1773549038208,-500.0,0.00013699,2]
[408390669,1773549038217,-500.0,0.00013699,2]
[408390670,1773549038226,-500.0,0.00013699,2]
[408390671,1773549038236,-500.0,0.00013699,2]
[408390672,1773549038245,-500.0,0.00013699,2]
[408390673,1773549038255,-500.0,0.00013699,2]
[408390674,1773549038265,-500.0,0.00013699,2]
[408390675,1773549038274,-500.0,0.00013699,2]
[408390676,1773549038283,-500.0,0.00013699,2]
[408390677,1773549038292,-500.0,0.00013699,2]
[408390678,1773549038302,-500.0,0.00013699,2]
[408390679,1773549038311,-500.0,0.00013699,2]
[408390680,1773549038320,-500.0,0.00013699,2]
[408390681,1773549038330,-500.0,0.00013699,2]
[408390682,1773549038339,-500.0,0.00013699,2]
[408390685,1773549038349,-500.0,0.00013699,2]
[408390686,1773549038358,-500.0,0.00013699,2]
[408390687,1773549038367,-500.0,0.00013699,2]
[408390688,1773549038377,-500.0,0.00013699,2]
[408390689,1773549038387,-500.0,0.00013699,2]
[408390690,1773549038397,-500.0,0.00013699,2]
[408390691,1773549038406,-500.0,0.00013699,2]
[408390692,1773549038416,-500.0,0.00013699,2]
[408390693,1773549038425,-500.0,0.00013699,2]
[408390694,1773549038435,-939.11701572,0.000149,2]
[408390695,1773549038445,-170.1553629,0.000149,2]
[408390696,1773549038466,-1600.0,0.00014936,2]
[408390697,1773549038481,-11041.90674348,0.00014999,2]
[408390698,1773549038492,-250.0,0.00015,2]
[408390699,1773549038502,-1234.73,0.00015062,2]
[408390700,1773549038513,-363.68,0.00015068,2]
[408390701,1773549038522,-535.39,0.00015161,2]
[408390702,1773549038533,-1000.0,0.0001521,2]
[408390703,1773549038543,-1503.29531739,0.00015316,2]
[408390704,1773549038553,-2015.36070875,0.00015316,2]
[408390705,1773549038563,-2000.0,0.00015316,2]
[408390706,1773549038572,-2000.0,0.00015316,2]
[408390707,1773549038581,-2000.0,0.00015316,2]
[408390708,1773549038592,-200.0,0.00015336,2]
[408390709,1773549038602,-1234.73,0.00015336,2]
[408390710,1773549038611,-535.39,0.00015435,2]
[408390711,1773549038621,-227.43,0.00015485,2]
[408390712,1773549038630,-1234.76105416,0.0001561,2]
[408390713,1773549038639,-11041.90674348,0.00015699,2]
[408390714,1773549038649,-535.39,0.00015709,2]
[408390715,1773549038657,-1500.0,0.00015758,2]
[408390716,1773549038666,-2500.0,0.00015864,2]
[408390717,1773549038676,-2509.1469731,0.00015864,2]
[408390718,1773549038686,-1005.88899418,0.00015864,2]
[408390719,1773549038696,-200.0,0.00015884,2]
[408390720,1773549038706,-433.0,0.00015923,2]
[408390721,1773549038717,-587.0,0.00015927,2]
[408390722,1773549038728,-535.39,0.00015983,2]
[408390723,1773549038738,-2351.0,0.00016032,2]
[408390724,1773549038747,-495.54,0.00016257,2]
[408390725,1773549038756,-2000.0,0.00016306,2]
[408390726,1773549038766,-11041.90674348,0.00016399,2]
[408390727,1773549038776,-505.33275983,0.00016412,2]
[408390728,1773549038786,-500.0,0.00016438,2]
[408390729,1773549038795,-226.23570669,0.00016438,2]
[408390730,1773549038804,-363.68,0.00016438,2]
[408390731,1773549038814,-2000.0,0.00016553,2]
[408390732,1773549038823,-160.0,0.00016554,2]
[408390733,1773549038833,-1600.0,0.00016596,2]
[408390734,1773549038843,-2505.48389819,0.00016854,2]
[408390735,1773549038852,-300.0,0.00017,2]
[408390736,1773549038862,-11041.90674348,0.000171,2]
[408390737,1773549038875,-736.0,0.00017229,2]
[408390738,1773549038885,-269.556267,0.00017359,2]
[408390739,1773549038894,-268.0,0.00017359,2]
[408390740,1773549038903,-268.0,0.00017359,2]
[408390741,1773549038914,-201.0,0.00017375,2]
[408390742,1773549038923,-823.0,0.00017463,2]
[408390743,1773549038932,-250.0,0.00017497,2]
[408390744,1773549038942,-201.0,0.00017512,2]
[408390745,1773549038954,-3292.0,0.00017636,2]
[408390746,1773549038963,-201.0,0.00017649,2]
[408390747,1773549038972,-4939.6105596,0.00017674,2]
[408390748,1773549038981,-150.99,0.00017728,2]
[408390749,1773549038991,-299.99,0.00017728,4]
[408390750,1773549039000,-319.38,0.00017728,2]
[408390751,1773549039009,-999.99,0.00017728,2]
[408390752,1773549039018,-2218.53,0.00017728,2]
[408390753,1773549039028,-3419.7,0.00017728,2]
[408390754,1773549039037,-150.99,0.00017728,2]
[408390755,1773549039047,-499.99,0.00017728,2]
[408390756,1773549039056,-9999.99,0.00017728,2]
[408390757,1773549039067,-3429.67,0.00017728,2]
[408390758,1773549039076,-9999.99,0.00017728,2]
[408390759,1773549039086,-201.0,0.00017786,2]
[408390760,1773549039096,-11041.90674348,0.000178,2]
[408390761,1773549039106,-536.0,0.00017899,2]
[408390762,1773549039116,-201.0,0.00017923,2]
[408390763,1773549039126,-487.57,0.00017931,2]
[408390764,1773549039135,-154.51093186,0.00017966,2]
[408390765,1773549039145,-296.75,0.00018205,2]
[408390766,1773549039155,-2000.0,0.00018208,2]
[408390767,1773549039165,-1600.0,0.00018256,2]
[408390768,1773549039174,-336.65,0.00018349,2]
[408390769,1773549039185,-11041.90674348,0.000185,2]
[408390770,1773549039194,-693.82544422,0.000186,2]
[408390771,1773549039205,-751.37105469,0.000186,2]
[408390772,1773549039215,-500.0,0.000186,2]
[408390773,1773549039226,-500.0,0.000186,2]
[408390774,1773549039238,-651.6596628,0.000186,2]
[408390775,1773549039247,-500.0,0.000186,2]
[408390776,1773549039256,-500.0,0.000186,2]
[408390777,1773549039266,-500.0,0.000186,2]
[408390778,1773549039275,-500.0,0.000186,2]
[408390779,1773549039284,-500.0,0.000186,2]
[408390780,1773549039293,-724.91196993,0.000186,2]
[408390781,1773549039303,-500.0,0.000186,2]
[408390782,1773549039312,-500.0,0.000186,2]
[408390783,1773549039321,-500.0,0.000186,2]
[408390784,1773549039331,-559.03755036,0.000186,2]
[408390785,1773549039340,-500.0,0.000186,2]
[408390786,1773549039350,-500.0,0.000186,2]
[408390787,1773549039359,-944.95239173,0.000186,2]
[408390788,1773549039368,-763.0,0.00018643,2]
[408390789,1773549039378,-500.0,0.0001871,2]
[408390790,1773549039387,-625.66579447,0.0001871,2]
[408390791,1773549039397,-500.0,0.0001871,2]
[408390792,1773549039406,-250.0,0.0001871,2]
[408390793,1773549039415,-250.0,0.0001871,2]
[408390794,1773549039426,-1500.0,0.0001871,2]
[408390795,1773549039436,-500.0,0.0001871,2]
[408390796,1773549039445,-250.0,0.0001871,2]
[408390797,1773549039454,-250.0,0.0001871,2]
[408390798,1773549039464,-500.0,0.0001871,2]
[408390799,1773549039473,-1500.0,0.0001871,2]
[408390800,1773549039484,-250.0,0.0001871,2]
[408390801,1773549039494,-516.75374354,0.0001871,2]
[408390802,1773549039503,-1500.0,0.0001871,2]
[408390803,1773549039512,-500.0,0.0001871,2]
[408390804,1773549039522,-250.0,0.0001871,2]
[408390805,1773549039531,-1500.0,0.0001871,2]
[408390806,1773549039540,-500.0,0.0001871,2]
[408390807,1773549039550,-1500.0,0.0001871,2]
[408390808,1773549039559,-500.0,0.0001871,2]
[408390809,1773549039568,-1500.0,0.0001871,2]
[408390810,1773549039578,-500.0,0.0001871,2]
[408390811,1773549039588,-1500.0,0.0001871,2]
[408390812,1773549039598,-500.0,0.0001871,2]
[408390813,1773549039607,-500.0,0.0001871,2]
[408390814,1773549039616,-250.0,0.0001871,2]
[408390815,1773549039627,-500.0,0.0001871,2]
[408390816,1773549039637,-1500.0,0.0001871,2]
[408390817,1773549039647,-1500.0,0.0001871,2]
[408390818,1773549039656,-250.0,0.0001871,2]
[408390819,1773549039665,-500.0,0.0001871,2]
[408390820,1773549039675,-1500.0,0.0001871,2]
[408390821,1773549039685,-1626.45124371,0.0001871,2]
[408390822,1773549039695,-500.0,0.0001871,2]
[408390823,1773549039705,-250.0,0.0001871,2]
[408390824,1773549039714,-500.0,0.0001871,2]
[408390825,1773549039723,-250.0,0.0001871,2]
[408390826,1773549039734,-250.0,0.0001871,2]
[408390827,1773549039744,-500.0,0.0001871,2]
[408390828,1773549039753,-250.0,0.0001871,2]
[408390829,1773549039763,-158.66711066,0.0001871,2]
[408390830,1773549039772,-250.0,0.0001871,2]
[408390831,1773549039782,-250.0,0.0001871,2]
[408390832,1773549039791,-250.0,0.0001871,2]
[408390833,1773549039801,-250.0,0.0001871,2]
[408390834,1773549039811,-262.25738298,0.0001871,2]
[408390835,1773549039820,-250.0,0.0001871,2]
[408390836,1773549039829,-250.0,0.0001871,2]
[408390837,1773549039839,-250.0,0.0001871,2]
[408390838,1773549039848,-250.0,0.0001871,2]
[408390839,1773549039857,-259.14946724,0.0001871,2]
[408390840,1773549039867,-258.56969309,0.0001871,2]
[408390841,1773549039879,-151.0,0.0001871,2]
[408390842,1773549039890,-156.587,0.0001871,2]
[408390843,1773549039899,-193.82989053,0.0001871,2]
[408390844,1773549039909,-500.0,0.0001871,2]
[408390845,1773549039921,-500.0,0.0001871,2]
[408390846,1773549039931,-500.0,0.0001871,2]
[408390847,1773549039940,-500.0,0.0001871,2]
[408390848,1773549039949,-500.0,0.0001871,2]
[408390850,1773549040106,-500.0,0.0001871,2]
[408390852,1773549040117,-500.0,0.0001871,2]
[408390853,1773549040127,-500.0,0.0001871,2]
[408390854,1773549040137,-500.0,0.0001871,2]
[408390855,1773549040147,-500.0,0.0001871,2]
[408390856,1773549040156,-500.0,0.0001871,2]
[408390857,1773549040167,-500.0,0.00018765,2]
[408390859,1773549040177,-500.0,0.0001882,2]
[408390860,1773549040187,-500.0,0.00018875,2]
[408390862,1773549040196,-336.65731301,0.00018926,2]
[408390864,1773549040205,-500.0,0.0001893,2]
[408390866,1773549040215,-500.0,0.00018985,2]
[408390868,1773549040224,-350.0,0.00019,2]
[408390870,1773549040233,-500.0,0.0001904,2]
[408390872,1773549040243,-3606.91997536,0.00019086,2]
[408390874,1773549040252,-239.16710553,0.00019093,2]
[408390876,1773549040261,-2835.36779212,0.00019094,2]
[408390879,1773549040278,-2753.66153606,0.00019094,2]
[408390882,1773549040384,-66646.24913102,0.00019094,2]
[408390883,1773549040393,-2719.3107377,0.00019094,2]
[408390884,1773549040402,-169538.1939051,0.00019094,2]
[408390885,1773549040412,-6408.8473542,0.00019094,2]
[408390886,1773549040421,-16048.7075436,0.00019094,2]
[408390887,1773549040431,-500.0,0.00019095,2]
[408390888,1773549040440,-30873.7683382,0.00019138,2]
[408390889,1773549040449,-1152.0,0.00019146,2]
[408390890,1773549040459,-500.0,0.0001915,2]
[408390891,1773549040468,-11041.90674348,0.000192,2]
[408390892,1773549040476,-3905.41103914,0.000192,2]
[408390893,1773549040486,-500.0,0.00019205,2]
[408390894,1773549040495,-285.32879457,0.00019257,2]
[408390895,1773549040504,-495.0,0.0001926,2]
[408390896,1773549040514,-500.0,0.0001926,2]
[408390897,1773549040525,-2968.0,0.00019335,2]
[408390898,1773549040534,-495.0,0.00019395,2]